bitfinex-derivatives/quotes_BTCF0:USTF0_20251111
["timestamp","ask_amount","ask_price","bid_price","bid_amount"]
[1762870501963,0.30502206,104410.0,104390.0,0.222073]
[1762870502169,0.46041302,104400.0,104390.0,0.06901124]
[1762870502378,0.46041302,104400.0,104390.0,0.36434384]
[1762870502570,0.30735126,104400.0,104390.0,0.36434384]
[1762870502970,0.3073412,104400.0,104390.0,3.84e-06]
[1762870503172,0.05849,104380.0,104370.0,0.11878105]
[1762870503373,0.05849,104380.0,104370.0,0.32293893]
[1762870504973,0.06049,104380.0,104370.0,0.32293893]
[1762870505274,0.06049,104380.0,104370.0,0.41876593]
[1762870505477,0.06049,104380.0,104370.0,0.59331763]
[1762870505878,0.06049,104380.0,104370.0,0.49749063]
[1762870506875,0.06049,104380.0,104370.0,0.34443893]
[1762870507077,0.06149,104380.0,104370.0,0.49749063]
[1762870507681,0.06149,104380.0,104370.0,0.59331763]
[1762870508785,0.1573078,104380.0,104370.0,0.59331763]
[1762870515179,0.02565,104380.0,104370.0,0.75803933]
[1762870515385,0.003,104380.0,104370.0,0.75803933]
[1762870515881,0.04794,104380.0,104370.0,0.75803933]
[1762870516083,0.003,104380.0,104370.0,0.75803933]
[1762870516289,0.003,104380.0,104370.0,0.8266383]
[1762870516787,0.003,104380.0,104370.0,0.8466383]
[1762870517480,0.003,104380.0,104370.0,0.8266383]
[1762870517679,0.003,104380.0,104370.0,0.8466383]
[1762870517880,0.002,104380.0,104370.0,0.77803933]
[1762870518280,0.00014384,104390.0,104380.0,0.1521678]
[1762870518476,0.00014384,104390.0,104380.0,0.37593113]
[1762870518682,0.04508384,104390.0,104380.0,0.37593113]
[1762870518880,0.14089244,104390.0,104380.0,0.30741753]
[1762870519486,0.15420244,104390.0,104380.0,0.21159973]
[1762870519792,0.15620244,104390.0,104380.0,0.21159973]
[1762870520188,0.15720244,104390.0,104380.0,0.21159973]
[1762870520485,0.15720244,104390.0,104380.0,0.30741753]
[1762870520687,0.15720244,104390.0,104380.0,0.29574753]
[1762870521486,0.15720244,104390.0,104380.0,0.36426113]
[1762870522186,0.15720244,104390.0,104380.0,0.37593113]
[1762870522881,0.15720244,104390.0,104380.0,0.30741753]
[1762870523083,0.31025414,104390.0,104380.0,0.00219803]
[1762870523278,0.05815,104380.0,104370.0,0.1235409]
[1762870523477,0.05815,104380.0,104370.0,0.49001893]
[1762870523883,0.1539678,104380.0,104370.0,0.73889763]
[1762870524078,0.11226244,104390.0,104380.0,0.1401678]
[1762870524079,0.15710244,104390.0,104380.0,0.1401678]
[1762870524279,0.15710244,104390.0,104380.0,0.37560113]
[1762870524982,0.15510244,104390.0,104380.0,0.37560113]
[1762870525289,0.05829384,104390.0,104380.0,0.37560113]
[1762870525987,0.05929384,104390.0,104380.0,0.37560113]
[1762870526389,0.15510244,104390.0,104380.0,0.37560113]
[1762870527685,0.05929384,104390.0,104380.0,0.37560113]
[1762870527985,0.15510244,104390.0,104380.0,0.37560113]
[1762870528386,0.15710244,104390.0,104380.0,0.37560113]
[1762870529493,0.04798384,104390.0,104380.0,0.37560113]
[1762870529690,0.00314384,104390.0,104380.0,0.37560113]
[1762870529892,0.00314384,104390.0,104380.0,0.39316768]
[1762870530281,0.04798384,104390.0,104380.0,0.39316768]
[1762870531494,0.02530384,104390.0,104380.0,0.39316768]
[1762870531894,0.14379244,104390.0,104380.0,0.30708753]
[1762870532891,0.02530384,104390.0,104380.0,0.30708753]
[1762870533692,0.00314384,104390.0,104380.0,0.32708753]
[1762870534199,0.00314384,104390.0,104380.0,0.44721127]
[1762870534697,0.00314384,104390.0,104380.0,0.53311112]
[1762870534897,0.00314384,104390.0,104380.0,0.41298738]
[1762870536794,0.00314384,104390.0,104380.0,0.39298738]
[1762870536996,0.00314384,104390.0,104380.0,0.41298738]
[1762870538107,0.15710244,104390.0,104380.0,0.75718738]
[1762870538299,0.15710244,104390.0,104380.0,0.37583454]
[1762870538496,0.15710244,104390.0,104380.0,0.04654803]
[1762870538696,0.15710244,104390.0,104380.0,0.63256422]
[1762870538895,0.15710244,104390.0,104380.0,0.72838202]
[1762870539102,0.15710244,104390.0,104380.0,0.63256422]
[1762870539705,0.15710244,104390.0,104380.0,0.11531252]
[1762870539892,0.15710244,104390.0,104380.0,0.47951252]
[1762870540199,0.15710244,104390.0,104380.0,0.57533032]
[1762870540396,0.15710244,104390.0,104380.0,0.47951252]
[1762870540597,0.15710244,104390.0,104380.0,0.63256422]
[1762870540795,0.15710244,104390.0,104380.0,0.41074803]
[1762870541600,0.15710244,104390.0,104380.0,0.50656583]
[1762870541998,0.15710244,104390.0,104380.0,0.65961753]
[1762870542304,0.15710244,104390.0,104380.0,0.72838202]
[1762870543106,0.06129384,104390.0,104380.0,0.74005202]
[1762870543306,0.04798384,104390.0,104380.0,0.74005202]
[1762870543608,0.00314384,104390.0,104380.0,0.74005202]
[1762870544007,0.00314384,104390.0,104380.0,0.67128753]
[1762870544309,0.00314384,104390.0,104380.0,0.75718738]
[1762870545108,0.00314384,104390.0,104380.0,0.51823583]
[1762870545308,0.00314384,104390.0,104380.0,0.67128753]
[1762870546209,0.00314384,104390.0,104380.0,0.75727598]
[1762870551010,0.00314384,104390.0,104380.0,0.67128753]
[1762870551411,0.00314384,104390.0,104380.0,0.79141127]
[1762870553821,0.00314384,104390.0,104380.0,0.16667177]
[1762870553822,0.30992414,104390.0,104380.0,0.16667177]
[1762870554015,0.30992414,104390.0,104380.0,0.12232177]
[1762870554318,0.30992414,104390.0,104380.0,0.00219803]
[1762870555120,0.1537378,104380.0,104370.0,0.63571489]
[1762870555321,0.3067895,104380.0,104370.0,0.63791292]
[1762870556431,0.3067895,104380.0,104370.0,0.56907803]
[1762870556637,0.1537378,104380.0,104370.0,0.66490503]
[1762870556930,0.1537378,104380.0,104370.0,0.67455668]
[1762870557128,0.1537378,104380.0,104370.0,0.74339157]
[1762870557430,0.1537378,104380.0,104370.0,0.67455668]
[1762870557927,0.1537378,104380.0,104370.0,0.83927838]
[1762870558130,0.04435,104380.0,104370.0,0.90811327]
[1762870558424,0.11052244,104390.0,104370.0,0.90811327]
[1762870558425,0.15508244,104390.0,104380.0,0.04444]
[1762870558624,0.15508244,104390.0,104380.0,0.29550753]
[1762870558625,0.05927384,104390.0,104380.0,0.29550753]
[1762870559523,0.05927384,104390.0,104380.0,0.36434242]
[1762870559723,0.06127384,104390.0,104380.0,0.36434242]
[1762870560619,0.15708244,104390.0,104380.0,0.36434242]
[1762870560823,0.04770384,104390.0,104380.0,0.37615242]
[1762870561022,0.01311,104420.0,104380.0,0.74195162]
[1762870561334,0.05867,104420.0,104410.0,0.293282]
[1762870561522,0.05867,104420.0,104410.0,0.65988003]
[1762870561719,0.05867,104420.0,104410.0,0.67155003]
[1762870561928,0.1544511,104420.0,104410.0,0.51849833]
[1762870562126,0.1544511,104420.0,104410.0,0.67155003]
[1762870562327,0.1544511,104420.0,104410.0,0.65988003]
[1762870562520,0.1554511,104420.0,104410.0,0.65988003]
[1762870562928,0.1554511,104420.0,104410.0,0.57566322]
[1762870563329,0.1544511,104420.0,104410.0,0.57566322]
[1762870563523,0.1544511,104420.0,104410.0,0.47987292]
[1762870563724,0.1544511,104420.0,104410.0,0.41103803]
[1762870564432,0.1544511,104420.0,104410.0,0.50682833]
[1762870565433,0.1554511,104420.0,104410.0,0.50682833]
[1762870566025,0.06067,104420.0,104410.0,0.70966494]
[1762870566331,0.04756,104420.0,104410.0,0.70966494]
[1762870566735,0.04756,104420.0,104410.0,0.77849983]
[1762870567621,0.1433411,104420.0,104410.0,0.77849983]
[1762870567827,0.1423411,104420.0,104410.0,0.77849983]
[1762870568929,0.05967,104420.0,104410.0,0.77849983]
[1762870569132,0.1423411,104420.0,104410.0,0.77849983]
[1762870569437,0.1413411,104420.0,104410.0,0.77849983]
[1762870570736,0.15482175,104430.0,104420.0,0.1402211]
[1762870570938,0.15482175,104430.0,104420.0,0.14241913]
[1762870571732,0.15482175,104430.0,104420.0,0.04663803]
[1762870572833,0.15482175,104430.0,104420.0,0.14241913]
[1762870573033,0.15582175,104430.0,104420.0,0.14241913]
[1762870573230,0.02418365,104430.0,104420.0,0.34539574]
[1762870573435,0.00137365,104430.0,104420.0,0.41423063]
[1762870573731,0.00237365,104430.0,104420.0,0.41423063]
[1762870575636,0.06104365,104430.0,104420.0,0.50657913]
[1762870575941,0.06104365,104430.0,104420.0,0.69774574]
[1762870576633,0.06104365,104430.0,104420.0,0.70955574]
[1762870576834,0.04793365,104430.0,104420.0,0.70955574]
[1762870578146,0.02518365,104430.0,104420.0,0.70955574]
[1762870579244,0.12095555,104430.0,104420.0,0.70955574]
[1762870579446,0.00237365,104430.0,104420.0,0.70955574]
[1762870579934,0.1404113,104450.0,104440.0,0.1483028]
[1762870580138,0.1404113,104450.0,104440.0,0.70574744]
[1762870580439,0.1535122,104460.0,104450.0,0.1390036]
[1762870580643,0.1535122,104460.0,104450.0,0.15087787]
[1762870581145,0.1535122,104460.0,104450.0,0.05512427]
[1762870581742,0.1535122,104460.0,104450.0,0.04544803]
[1762870582052,0.1545122,104460.0,104450.0,0.42052803]
[1762870582345,0.34567881,104460.0,104450.0,0.01319803]
[1762870582545,0.34567881,104460.0,104450.0,0.011]
[1762870582934,0.46028256,104460.0,104450.0,0.011]
[1762870583341,0.46128256,104460.0,104450.0,0.024]
[1762870584838,0.34662931,104460.0,104450.0,0.024]
[1762870585133,0.1534636,104450.0,104440.0,0.00014384]
[1762870585344,0.34458071,104450.0,104440.0,0.00014384]
[1762870585645,0.1534819,104430.0,104420.0,0.04325]
[1762870585953,0.1534819,104430.0,104420.0,0.38864803]
[1762870586247,0.34459901,104430.0,104420.0,0.00219803]
[1762870586446,0.05771,104420.0,104410.0,0.36408]
[1762870586645,0.24882711,104420.0,104410.0,0.38740803]
[1762870586945,0.05771,104420.0,104410.0,0.38740803]
[1762870587451,0.05771,104420.0,104410.0,0.50531833]
[1762870587751,0.04465,104420.0,104410.0,0.70824544]
[1762870588546,0.1534911,104420.0,104410.0,0.60064514]
[1762870588944,0.1534911,104420.0,104410.0,0.40952803]
[1762870589149,0.1534911,104420.0,104410.0,0.02332803]
[1762870589349,0.1544911,104420.0,104410.0,0.00219803]
[1762870589540,0.1544911,104420.0,104410.0,0.09304803]
[1762870589739,0.1544911,104420.0,104410.0,0.07191803]
[1762870589949,0.34560821,104420.0,104410.0,0.07191803]
[1762870590741,0.34960821,104420.0,104410.0,0.09404803]
[1762870591147,0.34960821,104420.0,104410.0,0.07291803]
[1762870591737,0.34860821,104420.0,104410.0,0.07291803]
[1762870591941,0.1604911,104420.0,104410.0,0.07291803]
[1762870592750,0.1604911,104420.0,104410.0,0.11616803]
[1762870594655,0.1604911,104420.0,104410.0,0.21195833]
[1762870596255,0.1474311,104420.0,104410.0,0.41488544]
[1762870596851,0.1604911,104420.0,104410.0,0.41488544]
[1762870597452,0.1604911,104420.0,104410.0,0.22376833]
[1762870598347,0.1604911,104420.0,104410.0,0.21195833]
[1762870599960,0.1604911,104420.0,104410.0,0.28041358]
[1762870600653,0.1027811,104420.0,104410.0,0.48334069]
[1762870601252,0.1252611,104420.0,104410.0,0.48334069]
[1762870601461,0.1474311,104420.0,104410.0,0.48334069]
[1762870604263,0.1474311,104420.0,104410.0,0.29222358]
[1762870604458,0.1474311,104420.0,104410.0,0.48334069]
[1762870604764,0.05165,104420.0,104410.0,0.48334069]
[1762870604966,0.02948,104420.0,104410.0,0.44514093]
[1762870605556,0.007,104420.0,104410.0,0.44514093]
[1762870605750,0.05165,104420.0,104410.0,0.29222358]
[1762870606064,0.31340845,104420.0,104410.0,0.34935063]
[1762870606364,0.31340845,104420.0,104410.0,0.71351063]
[1762870606656,0.31340845,104420.0,104410.0,0.80930093]
[1762870606657,0.1604911,104420.0,104410.0,0.80930093]
[1762870608059,0.1474311,104420.0,104410.0,0.80930093]
[1762870608563,0.05165,104420.0,104410.0,0.80930093]
[1762870608864,0.007,104420.0,104410.0,0.96221828]
[1762870609365,0.007,104420.0,104410.0,0.89376303]
[1762870610463,0.007,104420.0,104410.0,0.74084568]
[1762870611460,0.007,104420.0,104410.0,0.97933209]
[1762870613567,0.00014384,104430.0,104420.0,0.04764]
[1762870613767,0.00014384,104430.0,104420.0,0.42439817]
[1762870614068,0.21019119,104430.0,104420.0,0.04502803]
[1762870614268,0.21019119,104430.0,104420.0,0.40914803]
[1762870614863,0.21019119,104430.0,104420.0,0.41214803]
[1762870615265,0.21019119,104430.0,104420.0,0.41514803]
[1762870617070,0.05727384,104430.0,104420.0,0.56806538]
[1762870617264,0.21019119,104430.0,104420.0,0.56806538]
[1762870618163,0.21019119,104430.0,104420.0,0.41514803]
[1762870618770,0.21019119,104430.0,104420.0,0.37231803]
[1762870619366,0.21019119,104430.0,104420.0,0.00819803]
[1762870619769,0.21019119,104430.0,104420.0,0.05238803]
[1762870620967,0.05727384,104430.0,104420.0,0.05238803]
[1762870621863,0.2484489,104430.0,104420.0,0.00819803]
[1762870622875,0.33769126,104430.0,104420.0,0.00819803]
[1762870624171,0.33769126,104430.0,104420.0,0.02940803]
[1762870624383,0.05727384,104430.0,104420.0,0.05238803]
[1762870636175,0.33769126,104430.0,104420.0,0.00819803]
[1762870636375,0.72506239,104430.0,104420.0,0.006]
[1762870637094,0.0957811,104420.0,104410.0,0.1584]
[1762870637389,0.0957811,104420.0,104400.0,0.00022665]
[1762870637390,0.05703,104410.0,104400.0,0.00022665]
[1762870637583,0.70156742,104410.0,104400.0,0.00022665]
[1762870639289,0.70156742,104410.0,104400.0,0.04661468]
[1762870639491,0.05703,104410.0,104400.0,0.04661468]
[1762870639675,0.1528203,104410.0,104400.0,0.05964468]
[1762870640889,0.30581244,104410.0,104400.0,0.06264468]
[1762870641578,0.30581244,104410.0,104400.0,0.15844418]
[1762870641778,0.30581244,104410.0,104400.0,0.16144418]
[1762870643085,0.30581244,104410.0,104400.0,0.06564468]
[1762870643679,0.1397903,104410.0,104400.0,0.31443632]
[1762870643882,0.1407469,104420.0,104410.0,0.05793]
[1762870644082,0.30570904,104420.0,104410.0,0.04709803]
[1762870644286,0.04496,104410.0,104400.0,0.59289481]
[1762870644484,0.19795214,104410.0,104400.0,0.59509284]
[1762870644686,0.04496,104410.0,104400.0,0.59509284]
[1762870645291,0.05853,104410.0,104400.0,0.49629334]
[1762870646287,0.1543203,104410.0,104400.0,0.59209284]
[1762870646793,0.1543203,104410.0,104400.0,0.49629334]
[1762870647182,0.30731244,104410.0,104400.0,0.49929334]
[1762870648581,0.30731244,104410.0,104400.0,0.59509284]
[1762870648792,0.04496,104420.0,104410.0,0.1537203]
[1762870648988,0.20992214,104420.0,104410.0,0.06012803]
[1762870649189,0.30570804,104420.0,104410.0,0.06012803]
[1762870650485,0.30670804,104420.0,104410.0,0.07112803]
[1762870651889,0.30770804,104420.0,104410.0,0.08012803]
[1762870652494,0.02437,104420.0,104410.0,0.32891047]
[1762870652898,0.1427411,104420.0,104410.0,0.32891047]
[1762870653096,0.29573324,104420.0,104410.0,0.08012803]
[1762870653296,0.30930324,104420.0,104410.0,0.44428803]
[1762870653501,0.30930324,104420.0,104410.0,0.43125803]
[1762870653692,0.30930324,104420.0,104410.0,0.06709803]
[1762870654704,0.30930324,104420.0,104410.0,0.08012803]
[1762870656201,0.30930324,104420.0,104410.0,0.17591833]
[1762870657397,0.1563111,104420.0,104410.0,0.17591833]
[1762870659103,0.1427411,104420.0,104410.0,0.17591833]
[1762870663008,0.0977811,104420.0,104410.0,0.32891047]
[1762870663608,0.1201511,104420.0,104410.0,0.32891047]
[1762870664208,0.1427411,104420.0,104410.0,0.32891047]
[1762870664904,0.5127411,104420.0,104410.0,0.32891047]
[1762870665310,0.4677811,104420.0,104410.0,0.32891047]
[1762870666303,0.4901511,104420.0,104410.0,0.32891047]
[1762870666501,0.5127411,104420.0,104410.0,0.32891047]
[1762870668903,0.372,104420.0,104410.0,0.32891047]
[1762870669413,0.372,104420.0,104410.0,0.4148838]
[1762870670714,0.371,104420.0,104410.0,0.4088838]
[1762870672913,0.37,104420.0,104410.0,0.3978838]
[1762870679808,0.17801103,104420.0,104410.0,0.75309548]
[1762870680317,0.17801103,104420.0,104410.0,0.51365548]
[1762870680613,0.17801103,104420.0,104410.0,0.8767494]
[1762870680917,0.35803,104420.0,104410.0,1.1767494]
[1762870681306,0.3,104420.0,104410.0,1.1767494]
[1762870681508,0.36103,104420.0,104410.0,1.1767494]
[1762870681716,0.36103,104420.0,104410.0,0.9212794]
[1762870681919,0.36403,104420.0,104410.0,1.1607194]
[1762870682212,0.36403,104420.0,104410.0,0.74578655]
[1762870682413,0.36403,104420.0,104410.0,0.65992047]
[1762870684017,0.4598111,104420.0,104410.0,0.65992047]
[1762870684215,0.4598111,104420.0,104410.0,0.74578655]
[1762870684612,0.63280324,104420.0,104410.0,0.04709803]
[1762870684815,0.63280324,104420.0,104410.0,0.38833803]
[1762870685120,0.63277554,104420.0,104410.0,0.38833803]
[1762870685311,0.63277554,104420.0,104410.0,0.36623803]
[1762870686118,0.78573998,104420.0,104410.0,0.00219803]
[1762870686319,0.78573998,104420.0,104410.0,0.36623803]
[1762870686503,0.05803,104410.0,104400.0,0.00022665]
[1762870686812,0.52099444,104410.0,104400.0,0.36426665]
[1762870687209,0.52099444,104410.0,104400.0,0.36646468]
[1762870687909,0.52299444,104410.0,104400.0,0.36646468]
[1762870688109,0.61878474,104410.0,104400.0,0.47144418]
[1762870688310,0.62178474,104410.0,104400.0,0.47144418]
[1762870688605,0.62178474,104410.0,104400.0,0.62440862]
[1762870689006,0.4688203,104410.0,104400.0,0.62440862]
[1762870689212,0.62178474,104410.0,104400.0,0.62440862]
[1762870690424,0.4688203,104410.0,104400.0,0.62440862]
[1762870690718,0.1588203,104410.0,104400.0,0.62440862]
[1762870691712,0.06303,104410.0,104400.0,0.77737306]
[1762870692123,0.005,104410.0,104400.0,0.77737306]
[1762870692513,0.04113,104410.0,104400.0,0.86323914]
[1762870692714,0.005,104410.0,104400.0,0.86782914]
[1762870692912,0.005,104410.0,104400.0,1.26023358]
[1762870693122,0.005,104410.0,104400.0,1.10726914]
[1762870693723,0.005,104410.0,104400.0,0.86782914]
[1762870693918,0.005,104410.0,104400.0,1.10726914]
[1762870694621,0.005,104410.0,104400.0,0.86782914]
[1762870695015,0.005,104410.0,104400.0,1.10726914]
[1762870695225,0.005,104410.0,104400.0,1.02140306]
[1762870696516,0.005,104410.0,104400.0,1.1743675]
[1762870696717,0.01393384,104430.0,104420.0,0.00202]
[1762870696718,0.05817384,104430.0,104420.0,0.00202]
[1762870696918,0.05817384,104430.0,104420.0,0.76996801]
[1762870698023,0.06217384,104430.0,104420.0,0.76996801]
[1762870698828,0.00414384,104430.0,104420.0,0.76996801]
[1762870699022,0.00814384,104430.0,104420.0,0.78996801]
[1762870700235,0.03048384,104430.0,104420.0,0.76996801]
[1762870700528,0.00814384,104430.0,104420.0,0.76996801]
[1762870701333,0.00814384,104430.0,104420.0,0.92293245]
[1762870701629,0.00814384,104430.0,104420.0,1.52885579]
[1762870702622,0.00814384,104430.0,104420.0,1.76825579]
[1762870702819,0.00814384,104430.0,104420.0,1.52885579]
[1762870703120,0.05757,104450.0,104430.0,0.0957694]
[1762870703326,0.05757,104450.0,104440.0,0.76796971]
[1762870703731,0.03625,104450.0,104440.0,0.76796971]
[1762870704027,0.05757,104450.0,104440.0,0.76796971]
[1762870706028,0.06057,104450.0,104440.0,0.76796971]
[1762870707329,0.03925,104450.0,104440.0,0.76796971]
[1762870707530,0.01679,104450.0,104440.0,0.76796971]
[1762870707733,0.003,104450.0,104440.0,0.76796971]
[1762870708326,0.01584,104450.0,104440.0,0.76796971]
[1762870708525,0.0383,104450.0,104440.0,0.76796971]
[1762870708724,0.01584,104450.0,104440.0,0.76796971]
[1762870709120,0.0383,104450.0,104440.0,0.76796971]
[1762870709325,0.05962,104450.0,104440.0,0.76796971]
[1762870709727,0.05962,104450.0,104440.0,0.40388971]
[1762870709928,0.05962,104450.0,104440.0,0.76784971]
[1762870710733,0.05962,104450.0,104440.0,0.83627883]
[1762870711832,0.05962,104450.0,104440.0,0.76784971]
[1762870713734,0.05962,104450.0,104440.0,0.83627883]
[1762870714732,0.003,104450.0,104440.0,1.10498744]
[1762870714933,0.003,104450.0,104440.0,1.08498744]
[1762870715234,0.003,104450.0,104440.0,1.5692253]
[1762870715436,0.0383,104450.0,104440.0,1.5692253]
[1762870715633,0.003,104450.0,104440.0,1.8085853]
[1762870716127,0.003,104450.0,104440.0,1.5692253]
[1762870716327,0.003,104450.0,104440.0,1.8085853]
[1762870716532,0.003,104450.0,104440.0,1.5692253]
[1762870717536,0.003,104450.0,104440.0,1.8085853]
[1762870717736,0.003,104450.0,104440.0,1.5692253]
[1762870717938,0.003,104450.0,104440.0,1.8085853]
[1762870718140,0.003,104450.0,104440.0,1.74015618]
[1762870718330,0.00014384,104460.0,104450.0,0.55464692]
[1762870718638,0.00014384,104460.0,104450.0,1.1269308]
[1762870718639,4e-08,104460.0,104450.0,1.1269308]
[1762870718831,4e-08,104460.0,104450.0,1.3662508]
[1762870719031,0.05662,104480.0,104470.0,0.0957353]
[1762870719236,0.0353,104480.0,104470.0,0.76778221]
[1762870719530,0.05662,104480.0,104470.0,0.76778221]
[1762870720332,0.05662,104480.0,104470.0,0.46185333]
[1762870720530,0.05676384,104490.0,104480.0,0.0957261]
[1762870720734,0.05676384,104490.0,104480.0,0.40385301]
[1762870721236,0.05676384,104490.0,104480.0,0.41356715]
[1762870721436,0.05676384,104490.0,104480.0,0.10763827]
[1762870721628,0.05676384,104490.0,104480.0,0.41356715]
[1762870722642,0.05776384,104490.0,104480.0,0.42356715]
[1762870723142,0.05776384,104490.0,104480.0,0.42956715]
[1762870724142,0.05776384,104490.0,104480.0,0.12363827]
[1762870724346,0.05776384,104490.0,104480.0,0.42956715]
[1762870724537,0.05776384,104490.0,104480.0,0.27660271]
[1762870724738,0.05776384,104490.0,104480.0,0.64048271]
[1762870725140,0.05776384,104490.0,104480.0,0.54475661]
[1762870725340,0.21072828,104490.0,104480.0,0.54475661]
[1762870725538,0.21072828,104490.0,104480.0,0.01819803]
[1762870725744,0.21072828,104490.0,104480.0,0.38207803]
[1762870725934,0.05776384,104490.0,104480.0,0.78373301]
[1762870726348,0.05776384,104490.0,104480.0,0.79342593]
[1762870726854,0.15348084,104490.0,104480.0,0.79342593]
[1762870727346,0.15348084,104490.0,104480.0,0.32412691]
[1762870727549,0.05662,104470.0,104460.0,0.25458978]
[1762870727739,0.05662,104470.0,104460.0,0.77403225]
[1762870728947,0.06062,104470.0,104460.0,0.77403225]
[1762870729741,0.06062,104470.0,104460.0,0.78351606]
[1762870730044,0.004,104470.0,104460.0,0.85190026]
[1762870730645,0.04001,104470.0,104460.0,0.85190026]
[1762870730844,0.06129,104470.0,104460.0,0.7369143]
[1762870731847,0.1570253,104470.0,104460.0,0.3042501]
[1762870732153,0.1570253,104470.0,104460.0,0.47766718]
[1762870732549,0.1570253,104470.0,104460.0,0.6686101]
[1762870732754,0.06129,104470.0,104460.0,0.47766718]
[1762870733053,0.06129,104470.0,104460.0,0.6686101]
[1762870733347,0.1570253,104470.0,104460.0,0.6686101]
[1762870733540,0.06129,104470.0,104460.0,0.6686101]
[1762870734552,0.004,104470.0,104460.0,0.7369943]
[1762870734852,0.06129,104470.0,104460.0,0.6686101]
[1762870735841,0.06129,104470.0,104460.0,0.7369943]
[1762870736250,0.06129,104470.0,104460.0,0.6686101]
[1762870737251,0.06129,104470.0,104460.0,0.7369943]
[1762870737851,0.004,104470.0,104460.0,0.7869943]
[1762870738752,0.004,104470.0,104460.0,1.17272014]
[1762870740847,0.004,104470.0,104460.0,1.34365594]
[1762870741053,0.004,104470.0,104460.0,1.10433594]
[1762870741647,0.004,104470.0,104460.0,1.24844603]
[1762870741848,0.05783384,104490.0,104480.0,0.01774]
[1762870742047,0.05783384,104490.0,104480.0,0.67076705]
[1762870742560,0.05783384,104490.0,104480.0,0.7393765]
[1762870742951,0.05783384,104490.0,104480.0,0.3752165]
[1762870743159,0.05883384,104490.0,104480.0,0.7474565]
[1762870743659,0.05883384,104490.0,104480.0,0.7524565]
[1762870744861,0.05883384,104490.0,104480.0,0.56151358]
[1762870745158,0.05883384,104490.0,104480.0,0.7524565]
[1762870746953,0.05883384,104490.0,104480.0,0.84146548]
[1762870748360,0.05883384,104490.0,104480.0,0.77285603]
[1762870749962,0.00114384,104490.0,104480.0,0.77285603]
[1762870750167,0.05955384,104490.0,104480.0,0.49290413]
[1762870750663,0.05955384,104490.0,104480.0,0.56157652]
[1762870750961,0.05955384,104490.0,104480.0,0.84152842]
[1762870751360,0.00114384,104490.0,104480.0,0.84152842]
[1762870751661,0.05955384,104490.0,104480.0,0.84152842]
[1762870752464,0.00114384,104490.0,104480.0,0.84152842]
[1762870752960,0.00114384,104490.0,104480.0,0.70925026]
[1762870753161,0.00214384,104490.0,104480.0,0.70925026]
[1762870753461,0.00114384,104490.0,104480.0,0.70125026]
[1762870757162,0.00114384,104490.0,104480.0,0.63257787]
[1762870757365,0.05955384,104490.0,104480.0,0.63257787]
[1762870758369,0.05955384,104490.0,104480.0,0.71844395]
[1762870758559,0.00114384,104490.0,104480.0,0.71844395]
[1762870759970,0.00114384,104490.0,104480.0,0.87111769]
[1762870760561,0.00114384,104490.0,104480.0,0.92111769]
[1762870762272,0.00814384,104490.0,104480.0,0.92111769]
[1762870762476,0.00814384,104490.0,104480.0,1.159823]
[1762870762767,0.00814384,104490.0,104480.0,1.109823]
[1762870762962,0.05985963,104510.0,104500.0,0.0957078]
[1762870763159,0.05985963,104510.0,104500.0,0.68310282]
[1762870763376,0.05985963,104510.0,104500.0,0.61449957]
[1762870764774,0.06085963,104510.0,104500.0,0.62649957]
[1762870764977,0.03792963,104510.0,104500.0,0.62649957]
[1762870765475,0.06085963,104510.0,104500.0,0.62649957]
[1762870766077,0.05985963,104510.0,104500.0,0.61849957]
[1762870766464,0.05985963,104510.0,104500.0,0.61449957]
[1762870768376,0.03692963,104510.0,104500.0,0.61449957]
[1762870768866,0.15555823,104510.0,104500.0,0.61449957]
[1762870769170,0.05985963,104510.0,104500.0,0.61449957]
[1762870771471,0.15555823,104510.0,104500.0,0.61449957]
[1762870771774,0.05985963,104510.0,104500.0,0.61449957]
[1762870772274,0.15555823,104510.0,104500.0,0.61449957]
[1762870772576,0.05985963,104510.0,104500.0,0.61449957]
[1762870772779,0.15555823,104510.0,104500.0,0.61449957]
[1762870773976,0.15555823,104510.0,104500.0,0.09790583]
[1762870774180,0.15555823,104510.0,104500.0,0.68299886]
[1762870775471,0.15555823,104510.0,104500.0,0.53032512]
[1762870776273,0.15555823,104510.0,104500.0,0.68299886]
[1762870783776,0.15555823,104510.0,104500.0,0.61433957]
[1762870786276,0.15555823,104510.0,104500.0,0.70009363]
[1762870787080,0.15555823,104510.0,104500.0,0.60438583]
[1762870787279,0.15555823,104510.0,104500.0,0.43459707]
[1762870787694,0.30823197,104510.0,104500.0,0.07083707]
[1762870787886,0.30823197,104510.0,104500.0,0.43459707]
[1762870788088,0.30823197,104510.0,104500.0,0.06863904]
[1762870788385,0.30823197,104510.0,104500.0,0.43239904]
[1762870788885,0.30823197,104510.0,104500.0,0.43459707]
[1762870789582,0.30823197,104510.0,104500.0,0.43475707]
[1762870791090,0.15555823,104510.0,104500.0,0.43475707]
[1762870791281,0.05985963,104510.0,104500.0,0.68313861]
[1762870793885,0.03692963,104510.0,104500.0,0.61449957]
[1762870794084,0.01378963,104510.0,104500.0,0.61449957]
[1762870795378,0.01378963,104510.0,104500.0,0.70025363]
[1762870796490,0.00022963,104510.0,104500.0,0.70025363]
[1762870799593,0.00522963,104510.0,104500.0,0.70025363]
[1762870800989,0.00522963,104510.0,104500.0,0.91077667]
[1762870801195,0.05781,104530.0,104520.0,0.0956895]
[1762870801389,0.05781,104530.0,104520.0,0.76699501]
[1762870801585,0.01356,104530.0,104520.0,0.83562456]
[1762870801788,0.05781,104530.0,104520.0,0.76699501]
[1762870802699,0.05781,104530.0,104520.0,0.25456127]
[1762870802887,0.05781,104530.0,104520.0,0.61836127]
[1762870803087,0.05781,104530.0,104520.0,0.15887177]
[1762870803289,0.05781,104530.0,104520.0,0.68690516]
[1762870803801,0.1534903,104530.0,104520.0,0.33214516]
[1762870804098,0.1534903,104530.0,104520.0,0.60021566]
[1762870804490,0.1534903,104530.0,104520.0,0.62732127]
[1762870804697,0.1534903,104530.0,104520.0,0.69590516]
[1762870804890,0.1534903,104530.0,104520.0,0.60021566]
[1762870805698,0.30616404,104530.0,104520.0,0.08378192]
[1762870805898,0.1534903,104530.0,104520.0,0.44750192]
[1762870806100,0.1534903,104530.0,104520.0,0.37891803]
[1762870806296,0.1534903,104530.0,104520.0,0.08378192]
[1762870806492,0.1534903,104530.0,104520.0,0.44750192]
[1762870806897,0.30613288,104530.0,104520.0,0.6001445]
[1762870807299,0.30613288,104530.0,104520.0,0.37891803]
[1762870807601,0.30613288,104530.0,104520.0,0.62725011]
[1762870808401,0.1534903,104530.0,104520.0,0.62725011]
[1762870808603,0.1534903,104530.0,104520.0,0.77989269]
[1762870809102,0.1534903,104530.0,104520.0,0.84847658]
[1762870809504,0.01356,104530.0,104520.0,0.84847658]
[1762870809803,0.03595,104530.0,104520.0,0.84847658]
[1762870810102,0.05781,104530.0,104520.0,0.84847658]